{"text_format":"1","workbook":"xlsx","n_sheets":1,"sheets":["price bid "],"not_rendered":{"charts":0,"images":0,"macros":1,"external_links":0,"defined_names":2,"comments":0,"pivot_tables":0},"unopened":[],"bounds":{"document_bytes":16777216,"sheet_cells":100000,"rows_first":2000,"rows_last":500,"rows_between":2000,"halvings":0,"cell_chars":16384,"cell_head_chars":4096},"cells_cut":0,"cells_raw":0,"read":"whole","date_system":"1900"}

{"sheet":"price bid ","index":0,"n_rows":27,"n_cols":7,"rows_kept":27,"cut":false,"hidden":false,"merged":[[23,1,23,6],[21,1,21,6],[22,1,22,6],[0,0,0,6],[3,0,3,6],[1,0,1,6],[2,0,2,6],[4,0,4,2],[4,4,4,6],[19,2,19,6],[18,3,18,5]]}
["    BHARAT HEAVY ELECTRICAL LIMITED , JHANSI              "]
["FACTORY CIVIL DEPARTMENT"]
["PRICE BID (JS 146)"]
["Name of work:-  Miscellaneous sanitation and cleaning activities in BHEL Jhansi"]
["Tender Enq No-FCX/TW/22/09"]
["Sl. No.","Description of Work","% Allocation (Item-wise)","Unit ","Quantity ","Rate per Unit (in Rs.)","Amount (in Rs.)"]
[1,"Trimming of trees under around of over head H T and LT lines and dispose of waste material in suitable bin as per instruction of  Engineer-in-charge. (All tools & plants provided by Contractor)",14.6127680566,"Nos",75,{"$f":"ROUND(G7/E7,2)","v":0},{"$f":"ROUND($G$19*C7%,2)","v":0}]
[2,"Trimming of trees under around of street light poles and other area and disposal of waste material in suitable bin as per instruction of Engineer-in-charge. (All tools & plants provided by Contractor)",9.2546776895999994,"Nos",325,0,0]
[3,"Cleaning of cable trench including opening the trench cover, removing all waste material  and dispose of waste material in suitable bin as per instruction of Engineer-in-charge. (All tools & plants provided by Contractor)",29.675500070799998,"Mtr",1100,0,0]
[4,"Cleaning of oxidation pond and removing the vegetation and sludge (upto 300 mm depth) and disposal of waste material up to 500 m and stacking of sludge at appropriate place as per the instruction of Engineer-in-charge. (All tools & plants provided by Contractor)",11.2415576455,"Sqm ",2000,0,0]
[5,"Cleaning of drain (Nallah) inside factory area and disposal of material with tractor trolley upto suitable location as per instruction of Engineer-in-charge",13.0635346092,"Mtr",2000,0,0]
[6,"Cutting of grass and unwanted vegetation using manual tools in and around shops and office area and disposal of material upto 50 m as per instruction of Engineer-in-charge",5.7514946092999999,"Sqm ",100000,0,0]
[7,"Cleaning of RCC roofs  and dispose of waste material in suitable bin as per instruction of  Engineer-in-charge. (All tools & plants provided by Contractor)",1.4680388338999999,"Sqm ",10000,0,0]
[8,"Cleaning of factory floor using saw dust (Wood dust) and disposal of oil soaked saw dust into the designated dustbin as per instruction of Engineer-in-charge",4.2633456545000001,"Sqm ",10000,0,0]
[9,"Cleaning of gulley Chambers   and disposal of waste material in suitable bin as per instruction of  Engineer-in-charge. (All tools & plants provided by Contractor)",3.5411912088999999,"Nos",50,0,0]
[10,"Cleaning of Man holes (Up to 2.0 m depth) and disposal of waste material in suitable bin as per instruction of  Engineer-in-charge. (All tools & plants provided by Contractor)",2.8381755655999998,"Nos",27,0,0]
[11,"Cleaning of Man holes (Above 2.0 m  to 4.0 m depth) and disposal of waste material in suitable bin as per instruction of  Engineer-in-charge. (All tools & plants provided by Contractor)",3.1536792321,"Nos",15,0,0]
[12,"Cleaning of Man holes (Above 4 m depth) and disposal of waste material in suitable bin as per instruction of  Engineer-in-charge. (All tools & plants provided by Contractor)",1.1360368240000001,"Nos",4,0,{"$f":"ROUND($G$19*C18%,2)","v":0}]
[null,"Total ",{"$f":"SUM(C7:C18)","v":100},"Total amount quoted by bidder"]
[null,"IN WORDS",{"$f":"rup(G19)","v":0}]
[null,"Note -GST extra as applicable"]
[null,"1. Bidder has to quote in above unlocked cell (G-19) only. Item rate shall be calculated automatically. Calculated item rates upto four decimal points may be adjusted w.r.t. gross total amount and it shall be the itemwise final rate for  execution of contract and all other purposes."]
[null,"2. Quoted gross total amount should be considered only if quoted in this excel sheet and print out of this should only be considered for evaluation.  If Price is quoted in any other format other than the Excel Sheet enclosed to the NIT , the offer of the bidder  will be rejected"]
[null,"3.During the execution , the quantity of various items may vary to any extent depending on requirement of work/site and as per discretion of BHEL."]
[]
[]
[null,null,null,"(Signature and Seal of  Contractor  )"]